Cogmind - Beta 16 @@@ ROGUE MODE // 2025.11.27 @ 19:39:39 Player: Asimov Result: Self-destructed Performance ------------- Evolutions (2) 1000 Regions Visited (3) 600 Robots Destroyed (10) 50 Value Destroyed (365) 365 Prototype IDs (1) 20 Alien Tech Used (0) 0 Bonus (0) 0 TOTAL SCORE: 2035 Bonus ------- None Cogmind --------- Core Integrity 20/550 Matter 229/300 Energy 122/150 System Corruption 0% Temperature Danger (487) Movement Rolling (145) Ox3 Location -8/Materials Parts ------- > --- POWER (3) -------- Light Angular Momentum Engine > --- PROPULSION (2) --- Compact Wheel > --- UTILITY (3) ------ High-capacity Storage Unit Targeting Computer > --- WEAPON (3) ------- (None) > --- INVENTORY (20) --- Aluminum Leg Terrain Scanner Improved Power Shielding Hacking Suite Peak State ------------ > --- POWER ------------ Light Ion Engine Light Angular Momentum Engine > --- PROPULSION ------- Improved Aluminum Leg > --- UTILITY ---------- High-capacity Storage Unit Targeting Computer ECM Suite > --- WEAPON ----------- Medium Laser Advanced Beam Cannon > --- INVENTORY -------- Aluminum Leg Wheel Compact Wheel Terrain Scanner Improved Power Shielding Hacking Suite EM Pulse Gun Small Laser [Rating: 16] Favorites ----------- Power Light Ion Engine Engine Light Ion Engine Propulsion Aluminum Leg Leg Aluminum Leg Wheel Compact Wheel Utility High-capacity Storage Unit Device ECM Suite Storage High-capacity Storage Unit Processor Targeting Computer Weapon Medium Laser Energy Gun Medium Laser Energy Cannon Advanced Beam Cannon Ballistic Cannon Light Cannon Launcher Grenade Launcher Build | -11 -10 -9 -8 ------- Run | Yrd Mat Mat Mat Slots Evolved 4 | . . 2 2 Power 2 | . . 1 1 Propulsion . | . . . . Utility 1 | . . 1 . Weapon 1 | . . . 1 Parts Attached 18 | 6 3 5 4 Power 3 | 1 . 1 1 Engine 3 | 1 . 1 1 Core . | . . . . Reactor . | . . . . Propulsion 5 | 2 . 1 2 Treads . | . . . . Leg 3 | 2 . 1 . Wheel 2 | . . . 2 Hover . | . . . . Flight . | . . . . Utility 4 | 1 2 1 . Device 1 | . 1 . . Storage 2 | 1 1 . . Processor 1 | . . 1 . Hackware . | . . . . Protection . | . . . . Artifact . | . . . . Weapon 6 | 2 1 2 1 Energy Gun 3 | 2 . . 1 Energy Cannon 1 | . . 1 . Ballistic Gun . | . . . . Ballistic Cannon 1 | . . 1 . Launcher 1 | . 1 . . Special Weapon . | . . . . Impact Weapon . | . . . . Slashing Weapon . | . . . . Piercing Weapon . | . . . . Special Melee Weapon . | . . . . Unidentified Prototypes 1 | . . 1 . Parts Lost 9 | . . 1 8 Power 2 | . . . 2 Propulsion 2 | . . . 2 Utility . | . . . . Weapon 5 | . . 1 4 Highest Loss Streak 5 | . . 1 5 To Critical Strikes . | . . . . Average Backups 6 | 1 5 7 7 Power . | . 1 . . Propulsion 2 | . 2 2 2 Utility 2 | . 1 2 3 Weapon 2 | . 1 2 1 Tool/Special . | . . . . Unused Backups 3 | . . . 3 Power . | . . . . Propulsion . | . . . . Utility 3 | . . . 3 Weapon . | . . . . Tool/Special . | . . . . Average Slot Usage (%) 91 | . 95 97 79 Engine 18 | . 14 22 17 Leg 20 | . 28 22 12 Device 9 | . 9 11 8 Storage 11 | . 14 11 9 Processor 6 | . . 9 9 Energy Gun 10 | . 18 6 10 Energy Cannon 4 | . . 4 8 Ballistic Cannon 4 | . . 7 4 Launcher 3 | . 9 3 . Peak Build Rating 16 | 6 7 13 16 Average Rating 10 | 4 6 11 14 On Entrance 6 | . 6 7 13 Avg Prop Armor Cover (%) 9 | . . . 9 Naked Turns . | . . . . Heaviest Build 60 | 11 50 55 60 Greatest Support 26 | 20 20 23 26 Greatest Overweight (x) 19 | . 2 2 19 Average Overweight (x) 2 | . 1 2 5 Largest Inventory Capacity 20 | 8 20 20 20 Average Capacity 19 | 6 19 20 20 Most Carried 9 | 4 7 9 8 Average Carried 6 | 2 5 7 7 Final Capacity 20 | 8 20 20 20 Final Carried 9 | 4 7 9 4 Class Distribution -------------------- 84% | Mutant 15% | Gunner Dominant Class ---------------- Mutant | -10/Materials Mutant | -9/Materials Gunner | -8/Materials Resources | -11 -10 -9 -8 ----------- Run | Yrd Mat Mat Mat Matter Collected 394 | 187 16 55 136 Remotely . | . . . . Salvage Created 338 | . 101 39 198 Parts 26 | . 8 6 12 Haulers Intercepted . | . . . . Recyclers Shooed . | . . . . Parts Field Recycled . | . . . . Retrieved Matter . | . . . . Parts Self-Destructed . | . . . . Prevented . | . . . . Parts Restored . | . . . . Kills | -11 -10 -9 -8 ------- Run | Yrd Mat Mat Mat Combat Hostiles Destroyed 7 | . 2 1 4 Guns 6 | . 2 . 4 Cannons 1 | . . 1 . Classes Destroyed 4 | . 3 1 . Operator 2 | . 1 1 . Watcher 1 | . 1 . . Grunt 6 | . 2 . 4 Sentry 1 | . . 1 . Best Kill Streak 3 | . 2 2 3 Combat Bots Only 3 | . 1 1 3 Max Kills in Single Turn 1 | . 1 1 1 Gunslinging . | . . . . Exploded . | . . . . Melee . | . . . . Uniques/NPCs Destroyed . | . . . . Combat | -11 -10 -9 -8 -------- Run | Yrd Mat Mat Mat Hostile Shots Fired 88 | . 11 26 51 Missed 24 | . 3 9 12 Hits 64 | . 8 17 39 Projectile 64 | . 8 17 39 Critical Strikes 5 | . . . 5 Damage Taken 1449 | . 115 259 1075 Core 634 | . 22 82 530 Absorbed by Shields . | . . . . Core Remaining (%) 90 | 100 91 79 . Volleys Fired 36 | . 10 9 17 Largest 3 | . 2 2 3 Hottest 148 | . 80 80 148 Shots Fired 75 | . 15 15 45 Gun 46 | . 10 6 30 Cannon 24 | . . 9 15 Launcher 5 | . 5 . . Special . | . . . . Kinetic 15 | . . 9 6 Thermal 48 | . 10 6 32 Explosive 5 | . 5 . . Electromagnetic 7 | . . . 7 Robot Hit Streak 7 | . 7 6 4 Robot Miss Streak 2 | . 1 1 2 Penetration Max . | . . . . Secondary Targets 1 | . . . 1 Max Gunslinging Chain 1 | . . . 1 Shots Hit Robots 47 | . 10 12 25 Core Hits 27 | . 10 3 14 Critical Kills . | . . . . Critical Parts Destroyed . | . . . . Critical Strikes 3 | . 1 1 1 Burn 2 | . 1 . 1 Blast 1 | . . 1 . Melee Attacks . | . . . . Impact . | . . . . Slashing . | . . . . Piercing . | . . . . Sneak Attacks . | . . . . Combat Hostiles . | . . . . Follow-up Attacks . | . . . . Damage Inflicted 784 | . 203 187 394 Guns 406 | . 98 49 259 Cannons 273 | . . 138 135 Explosions 105 | . 105 . . Melee . | . . . . Ramming . | . . . . Kinetic 191 | . . 138 53 Thermal 424 | . 98 49 277 Explosive 105 | . 105 . . Electromagnetic 64 | . . . 64 Impact . | . . . . Slashing . | . . . . Piercing . | . . . . Highest Corruption . | . . . . Average Corruption . | . . . . Corruption Purged . | . . . . Corruption Blocked . | . . . . Overload Shots . | . . . . Overflow Damage . | . . . . Projectiles . | . . . . Explosions . | . . . . Melee . | . . . . Knockbacks 2 | . . 1 1 Impact . | . . . . Kinetic 2 | . . 1 1 Secondary . | . . . . Self-Inflicted Damage 24 | . 24 . . Shots 1 | . 1 . . Rammed . | . . . . Targets Rammed . | . . . . Kicked . | . . . . Crushed . | . . . . Highest Temperature 729 | . 68 96 729 Average Temperature 225 | . 32 38 366 Received Heat Transfer 543 | . 48 54 441 Effects 23 | . . . 23 Shutdowns 5 | . . . 5 Energy Bleed 1 | . . . 1 Short Circuit 5 | . . . 5 Damage (major) 8 | . . . 8 Damage (core) 4 | . . . 4 Siege Activations . | . . . . Martial Activations . | . . . . Shielding Activations . | . . . . Robots Disrupted . | . . . . Combat Hostiles . | . . . . Robots Corrupted . | . . . . Combat Hostiles . | . . . . Parts Fried . | . . . . Impact Corruptions . | . . . . Robots Melted . | . . . . Combat Hostiles . | . . . . Parts Melted . | . . . . Heat Transferred 1260 | . 370 148 742 Parts Sabotaged . | . . . . Parts Stolen . | . . . . Parts Stripped . | . . . . Power Chain Reactions . | . . . . Alert | -11 -10 -9 -8 ------- Run | Yrd Mat Mat Mat Maximum Alert Level . | . . . . Low Security (%) 100 | 100 100 100 100 Level 1 . | . . . . Level 2 . | . . . . Level 3 . | . . . . Level 4 . | . . . . Level 5 . | . . . . High Security . | . . . . Max Security . | . . . . Peak Influence 61 | . 61 30 50 Initial 8 | . . 8 . Average 7 | . 21 1 6 Influence Increases 250 | . 100 35 115 Destroy 0b10 Robot/C 140 | . 40 20 80 Destroy 0b10 Robot/NC 15 | . 10 5 . Destroy Leader 42 | . 12 10 20 Disable Machine 15 | . . . 15 Destroy Structure 38 | . 38 . . Influence Decreases 250 | . 80 55 115 Entered New Map 12 | . . 12 . Time Decay 183 | . 80 43 60 Lost Part 55 | . . . 55 Squads Dispatched 1 | . 1 . . Investigation . | . . . . Extermination . | . . . . Reinforcement 1 | . 1 . . Assault . | . . . . Garrison . | . . . . Intercept . | . . . . Searches Triggered . | . . . . Construction Impeded . | . . . . Haulers Reinforced . | . . . . Active Scanning Responses . | . . . . Cargo Convoy Interrupts . | . . . . Stealth | -11 -10 -9 -8 --------- Run | Yrd Mat Mat Mat Distress Signals 3 | . 1 . 2 Communications Jammed . | . . . . Distress Signals . | . . . . Times Spotted 18 | . 4 3 11 Peak Tracking Total 6 | . 2 2 6 Tactical Retreats 1 | . . . 1 ECM-based Alert Blocks 2 | . . . 2 Traps | -11 -10 -9 -8 ------- Run | Yrd Mat Mat Mat Traps Triggered . | . . . . Indirectly . | . . . . Trap Hack Attempts . | . . . . Triggered . | . . . . Disarmed . | . . . . Reprogrammed . | . . . . Reused . | . . . . Traps Extracted . | . . . . Installed . | . . . . Triggered . | . . . . Machines | -11 -10 -9 -8 ---------- Run | Yrd Mat Mat Mat Machines Disabled 1 | . . . 1 Max in Single Turn 1 | . . . 1 Machines Repaired . | . . . . Machines Dismantled . | . . . . Machines Sabotaged . | . . . . Overloaded Fab Kills . | . . . . Hacking | -11 -10 -9 -8 --------- Run | Yrd Mat Mat Mat Machines Accessed . | . . . . Terminals . | . . . . Fabricators . | . . . . Repair Stations . | . . . . Recycling Units . | . . . . Scanalyzers . | . . . . Garrison Access . | . . . . Total Hacks . | . . . . Successful . | . . . . Failed . | . . . . Catastrophic . | . . . . Database Lockouts . | . . . . Manual . | . . . . Terminals . | . . . . Fabricators . | . . . . Repair Stations . | . . . . Recycling Units . | . . . . Scanalyzers . | . . . . Garrison Access . | . . . . Terminal Hacks . | . . . . Fabricator Hacks . | . . . . Repair Station Hacks . | . . . . Recycling Unit Hacks . | . . . . Scanalyzer . | . . . . Garrison Access Hacks . | . . . . Unauthorized Hacks . | . . . . Terminals . | . . . . Fabricators . | . . . . Repair Stations . | . . . . Recycling Units . | . . . . Scanalyzers . | . . . . Garrison Access . | . . . . Data Cores Recovered 1 | . . 1 . Used . | . . . . Hacking Detections . | . . . . Full Trace Events . | . . . . Feedback Events . | . . . . Feedback Blocked . | . . . . Robot Schematics Acquired . | . . . . Robots Built . | . . . . Authchips . | . . . . Time . | . . . . Total Robot Build Rating . | . . . . Part Schematics Acquired . | . . . . Parts Built . | . . . . Authchips . | . . . . Time . | . . . . Total Part Build Rating . | . . . . Part Studies Acquired . | . . . . Parts Repaired . | . . . . Time . | . . . . Parts Recycled . | . . . . Recycled Matter . | . . . . Retrieved Matter . | . . . . Retrieved Components . | . . . . Parts Scanalyzed . | . . . . Part Schematics Acquired . | . . . . Parts Damaged . | . . . . Bothacking | -11 -10 -9 -8 ------------ Run | Yrd Mat Mat Mat Used RIF Installer . | . . . . Robots Hacked . | . . . . Non-combat . | . . . . Combat . | . . . . Robot Hacks Applied . | . . . . Relay Couplers Released . | . . . . Fabnet Peak Effective % . | . . . . Robots Rewired . | . . . . Allies Hacked . | . . . . Hacks Repelled . | . . . . Allies | -11 -10 -9 -8 -------- Run | Yrd Mat Mat Mat Total Allies . | . . . . Largest Group . | . . . . Highest-Rated Group . | . . . . Highest-Rated Ally . | . . . . Total Orders . | . . . . Ally Attacks . | . . . . Total Damage . | . . . . Kills . | . . . . Allies Corrupted . | . . . . Allies Melted . | . . . . Intel | -11 -10 -9 -8 ------- Run | Yrd Mat Mat Mat Active Infowar (turns) 1030 | . 230 605 195 ECM 1030 | . 230 605 195 Robot Analysis Total . | . . . . Derelict Logs Recovered . | . . . . Drone Launches . | . . . . Drone Recoveries . | . . . . Exploration | -11 -10 -9 -8 ------------- Run | Yrd Mat Mat Mat Turns Passed 1424 | 83 318 605 418 Spaces Moved 480 | 60 113 220 87 Core 21 | 3 . . 18 Treads . | . . . . Legs 456 | 57 113 220 66 Wheels 3 | . . . 3 Hover . | . . . . Flight . | . . . . Fastest Speed 50 | 50 120 260 120 Average Speed 264 | 116 238 260 409 Slowest Speed 1000 | 120 260 260 1000 Overloaded Moves . | . . . . Propulsion Burnouts . | . . . . Robots Hopped . | . . . . Potential Cave-ins . | . . . . Cave-ins Triggered . | . . . . Exploration Rate (%) 15 | 5 21 22 12 Regions Visited 3 Branch Regions . Pre-discovered Areas . | . . . . Known Exits Taken . | . . . . Unknown Exits Taken 3 | 1 1 1 . Scrap Searched . | . . . . Spaces Dug . | . . . . Terrain Destroyed 41 | . 41 . . Melee . | . . . . Projectile . | . . . . AOE 41 | . 41 . . Terrain Rammed . | . . . . Walls Destroyed . | . . . . Machines Disabled . | . . . . Actions | -11 -10 -9 -8 --------- Run | Yrd Mat Mat Mat Total 567 | 70 146 238 113 Wait 18 | . 18 . . Move 477 | 59 112 219 87 Hop . | . . . . Pick Up 11 | 5 2 4 . Fast Attach 9 | 5 2 1 1 Attach 8 | 1 . 2 5 Detach 1 | . 1 . . Swap 3 | . 1 2 . Drop 4 | . . 1 3 Fire 36 | . 10 9 17 Melee . | . . . . Ram . | . . . . Kick . | . . . . Crush . | . . . . Escape Stasis . | . . . . Rewire . | . . . . Trap . | . . . . Miscellaneous . | . . . . Route ------- -11/Scrapyard -10/Materials -9/Materials -8/Materials History --------- Turn | Location | Event 6 | -11/Scrapyard | Discovered new exit (range 16) 84 | -11/Scrapyard | Entered Materials 317 | -10/Materials | Build established: Mutant 391 | -10/Materials | Discovered new exit (range 5) 402 | -10/Materials | Entered another Materials area 402 | -9/Materials | Evolved 2 slots: Power x1, Utility x1 968 | -9/Materials | Discovered new exit (range 12) 1007 | -9/Materials | Entered another Materials area 1007 | -8/Materials | Evolved 2 slots: Power x1, Weapon x1 1204 | -8/Materials | Core integrity fell below 50% 1205 | -8/Materials | Core integrity fell below 20% 1227 | -8/Materials | Lost 3 parts (1p1n1w) 1425 | -8/Materials | Self-destructed Last Messages --------------- 01408_ Critical hit (Burn: +37). 01411_ G-50 Soldier destroyed. 01411_ Switching to secondary target: G-47 Trooper. 01412_ K-01 Serf collects debris. 01412_ Lgt. Ion Engine destroyed. 01414_ Critical hit (Burn: +37). 01416_ K-01 Serf collects debris. 01418_ R-06 Scavenger collects Hvy. Laser. 01419_ Power failure, Lgt. Angular Momentum Engine shutdown. 01419_ Med. Laser destroyed. 01419_ Critical hit (Burn: +37). 01420_ Overheating: EM Pulse Gun damaged (-6). 01420_ Overheating: Sml. Laser damaged (-9). 01421_ Wheel destroyed. 01423_ Targeting Computer broken. 01423_ Overheating: Short circuit. 01423_ Sml. Laser destroyed. 01424_ EM Pulse Gun destroyed. Map ----- +----------------------------------------------------+ | ?????????????????????????????????????????????????? | | ?????????????????????????????????????????????????? | | ?????????????????????????????????????????????????? | | ?????????????????????????????????????????????????? | | ?????????????????????????????????????????????????? | | ?????????????????????????????????????????????????? | | ?????????????????????????????????????????????????? | | ?????????????????????????????????????????????????? | | ?????????????????????????????????????????????????? | | ?????????????????????????????????????????????????? | | ????????????????????????? ?????????????????????? | | ????????????????????????? #????????????????????? | | ????????????????????????# #????????????????????? | | ????????????????????????#= #????????????????????? | | ???????????????? "?????#%= +????????????????????# | | ????????????????? ?????# gg#????????????????????# | | ????????????? ???? ????# #????????????????????# | | ????????????? ####+##### r#????????????????????# | | ????????????? !! w #????????????????????# | | ?????????????? !! r #????????????????????# | | ???????????????? !! r #????????????????????? | | ?????????????????# #????????????????????? | | ?????????????????# #??????????????#?????? | | ?????????????????# ########+####### ### | | ?????????????????# | | ?????????????????# @ | | ?????????????????# u a % | | ?????????????????# #############/############### | | ?????????????????# ????????????# #???????????? | | ???????????????????????????????# ! #???????????? | | ???????????????????????????????# #???????????? | | ???????????????????????????????# " #???????????? | | ???????????????????????????????# "" #???????????? | | ???????????????????????????????# "" ############# | | ???????????????????????????????# + | | ???????????????????????????????# """ ############# | | ???????????????????????????????# """ #???????????? | | ???????????????????????????????# """ #???????????? | | ???????????????????????????????# #???????????? | | ???????????????????????????????# #???????????? | | ???????????????????????????????#######???????????? | | ?????????????????????????????????????????????????? | | ?????????????????????????????????????????????????? | | ?????????????????????????????????????????????????? | | ?????????????????????????????????????????????????? | | ?????????????????????????????????????????????????? | | ?????????????????????????????????????????????????? | | ?????????????????????????????????????????????????? | | ?????????????????????????????????????????????????? | | ?????????????????????????????????????????????????? | +----------------------------------------------------+ Best States ------------- Heat Dissipation 31 Energy Generation 23 Energy Capacity 175 Matter Stores 244 Matter Capacity 300 Sight Range 16 Terrain Scan Density 10 ECM Strength 1 Evasion (%) 55 Targeting Accuracy 5 Item Schematics ----------------- None Robot Schematics ------------------ None Fabricated ------------ Nothing Repaired ---------- Nothing Studied --------- None Alien Tech Used ----------------- None Achievements -------------- None Challenges ------------ None Game ------ Seed SniperScanLance Manual? 0 Play Time 00:09:32 Cumulative 18.7 hours Start 2025.11.27 @ 19:32:13 End 2025.11.27 @ 19:39:39 Sessions 1 Manual Loads 0 Difficulty Rogue Special Mode None Game No. 56 Rogue 56 Adventurer 0 Explorer 0 Win Type - Total 0 Types 0/0/0/0/0/0/0/0/0/0 Lore% 12 Gallery% 22 Achievement% 14 Wizard Run 0 Options --------- Layout 1 ASCII 0 Keyboard 0 Movement Mouse Keybinds 0 Fullscreen 1 Font 24/Smallcaps Map View 50x35 Zoom Use 0% Tactical HUD 1 Map Filters NONE Filters NONE Steam 1 RUN: 95c49c41-a505-40ea-a66a-733beab1ec86